fUST/lending_fUST_20250321
["ID","MTS","AMOUNT","RATE_DAILY","PERIOD"]
[356494921,1742542249559,-500.0,0.00032876,21]
[356494922,1742542249569,-500.0,0.00032876,21]
[356494923,1742542249578,-500.0,0.00032876,21]
[356494924,1742542249588,-500.0,0.00032876,21]
[356494925,1742542249597,-1084.81,0.00032876,21]
[356494926,1742542249606,-500.0,0.00032876,21]
[356494927,1742542249616,-1442.16,0.00032876,21]
[356494928,1742542249626,-500.0,0.00032876,21]
[356494929,1742542249635,-500.0,0.00032876,21]
[356494930,1742542249699,-500.0,0.00032876,21]
[356494931,1742542249708,-1594.94,0.00032876,21]
[356494932,1742542249717,-665.58,0.00032876,21]
[356494933,1742542249727,-500.0,0.00032876,21]
[356494934,1742542249736,-1831.04,0.00032876,21]
[356494935,1742542249745,-500.0,0.00032876,21]
[356494936,1742542249754,-500.0,0.00032876,21]
[356494937,1742542249764,-500.0,0.00032876,21]
[356494938,1742542249773,-1612.96,0.00032876,21]
[356494939,1742542249783,-1165.08,0.00032876,21]
[356494940,1742542249792,-925.13,0.00032876,21]
[356494941,1742542249802,-503.56,0.00032876,21]
[356494942,1742542249811,-869.59,0.00032876,21]
[356494943,1742542249820,-913.63,0.00032876,21]
[356494944,1742542249829,-500.0,0.00032876,21]
[356494945,1742542249839,-540.43,0.00032876,21]
[356494946,1742542249848,-3350.79,0.00032876,21]
[356494947,1742542249857,-500.0,0.00032876,21]
[356494948,1742542249866,-500.0,0.00032876,21]
[356494949,1742542249875,-612.01,0.00032876,21]
[356494950,1742542249885,-1851.73,0.00032876,21]
[356494951,1742542249898,-707.14,0.00032876,21]
[356494952,1742542249907,-500.0,0.00032876,21]
[356494953,1742542249916,-646.29747745,0.00032876,21]
[356494954,1742542249926,-1306.72,0.00032876,21]
[356494955,1742542249937,-500.0,0.00032876,21]
[356494956,1742542249946,-762.47,0.00032876,21]
[356494957,1742542249955,-577.55,0.00032876,21]
[356494958,1742542249965,-500.0,0.00032876,21]
[356494959,1742542249975,-500.0,0.00032876,21]
[356494960,1742542249984,-645.18,0.00032876,120]
[356494961,1742542249993,-604.09,0.00032876,21]
[356494962,1742542250003,-500.0,0.00032876,21]
[356494963,1742542250012,-500.0,0.00032876,21]
[356494964,1742542250021,-500.0,0.00032876,21]
[356494965,1742542250030,-1274.37,0.00032876,21]
[356494966,1742542250039,-176.18318267,0.00032876,21]
[356494967,1742542250049,-1463.43,0.00032876,21]
[356494968,1742542250058,-188.0,0.00032876,2]
[356494969,1742542250067,-500.0,0.00032876,21]
[356494970,1742542250076,-604.67,0.00032876,2]
[356494971,1742542250085,-1229.05,0.00032876,21]
[356494972,1742542250094,-500.0,0.00032876,21]
[356494973,1742542250103,-301.10450729,0.00032876,21]
[356494974,1742542250113,-1449.17,0.00032876,21]
[356494975,1742542250122,-608.29445802,0.00032876,21]
[356494976,1742542250132,-558.64,0.00032876,21]
[356494977,1742542250141,-864.84,0.00032876,21]
[356494978,1742542250150,-500.0,0.00032876,21]
[356494979,1742542250159,-500.0,0.00032876,21]
[356494980,1742542250168,-500.0,0.00032876,21]
[356494981,1742542250178,-853.18,0.00032876,21]
[356494982,1742542250188,-930.79,0.00032876,21]
[356494983,1742542250197,-911.01,0.00032876,21]
[356494984,1742542250206,-1155.1,0.00032876,21]
[356494985,1742542250215,-500.0,0.00032876,21]
[356494986,1742542250225,-628.37,0.00032876,21]
[356494987,1742542250236,-2157.22,0.00032876,21]
[356494988,1742542250246,-500.0,0.00032876,21]
[356494989,1742542250255,-730.38,0.00032876,21]
[356494990,1742542250265,-500.0,0.00032876,21]
[356494991,1742542250274,-500.0,0.00032876,21]
[356494992,1742542250283,-151.44440337,0.00032876,21]
[356494993,1742542250292,-3214.35,0.00032876,21]
[356494994,1742542250302,-500.0,0.00032876,21]
[356494995,1742542250311,-932.14,0.00032876,21]
[356494996,1742542250320,-1347.54,0.00032876,21]
[356494997,1742542250330,-300.0,0.00032876,30]
[356494998,1742542250340,-1909.12,0.00032876,21]
[356494999,1742542250349,-500.0,0.00032876,21]
[356495000,1742542250358,-8108.94,0.00032876,21]
[356495001,1742542250367,-500.0,0.00032876,21]
[356495002,1742542250376,-500.0,0.00032876,21]
[356495003,1742542250386,-500.0,0.00032876,21]
[356495004,1742542250395,-500.0,0.00032876,21]
[356495005,1742542250404,-4322.26,0.00032876,21]
[356495006,1742542250413,-500.0,0.00032876,21]
[356495007,1742542250422,-1651.09,0.00032876,21]
[356495008,1742542250431,-625.33,0.00032876,21]
[356495009,1742542250441,-500.0,0.00032876,21]
[356495010,1742542250450,-500.0,0.00032876,21]
[356495011,1742542250459,-4397.82,0.00032876,21]
[356495012,1742542250468,-500.0,0.00032876,21]
[356495013,1742542250478,-500.0,0.00032876,21]
[356495014,1742542250487,-500.0,0.00032876,21]
[356495015,1742542250496,-500.0,0.00032876,21]
[356495016,1742542250506,-606.47,0.00032876,21]
[356495017,1742542250515,-834.02,0.00032876,21]
[356495018,1742542250524,-6125.72,0.00032876,2]
[356495019,1742542250533,-4934.31,0.00032876,21]
[356495020,1742542250542,-1009.9,0.00032876,21]
[356495021,1742542250552,-1386.1,0.00032876,21]
[356495022,1742542250561,-500.0,0.00032876,21]
[356495023,1742542250570,-500.0,0.00032876,21]
[356495024,1742542250580,-593.15,0.00032876,21]
[356495025,1742542250589,-607.71,0.00032876,21]
[356495026,1742542250599,-500.0,0.00032876,21]
[356495027,1742542250608,-1782.41,0.00032876,21]
[356495028,1742542250617,-500.0,0.00032876,21]
[356495029,1742542250626,-15819.85,0.00032876,21]
[356495030,1742542250635,-20923.9,0.00032876,21]
[356495031,1742542250644,-500.0,0.00032876,21]
[356495032,1742542250653,-500.0,0.00032876,21]
[356495033,1742542250663,-500.0,0.00032876,21]
[356495034,1742542250672,-500.0,0.00032876,21]
[356495035,1742542250681,-500.0,0.00032876,21]
[356495036,1742542250690,-500.0,0.00032876,21]
[356495037,1742542250700,-1287.28,0.00032876,21]
[356495038,1742542250710,-500.0,0.00032876,21]
[356495039,1742542250719,-3215.76,0.00032876,21]
[356495040,1742542250728,-1336.0,0.00032876,21]
[356495041,1742542250738,-1465.23,0.00032876,21]
[356495042,1742542250748,-7181.21163646,0.00032876,21]
[356495043,1742542251136,-3118.32836354,0.00032876,21]
[356495044,1742542251145,-500.0,0.00032876,21]
[356495045,1742542251155,-500.0,0.00032876,21]
[356495046,1742542251164,-935.8,0.00032876,21]
[356495047,1742542251174,-590.89,0.00032876,21]
[356495048,1742542251184,-444.39783705,0.00032876,21]
[356495049,1742542251196,-771.36216295,0.00032876,21]
[356495050,1742542251206,-5455.81,0.00032876,21]
[356495051,1742542251215,-3608.05,0.00032876,21]
[356495052,1742542251225,-723.29,0.00032876,21]
[356495053,1742542251235,-366.85998995,0.00032876,21]
[356495054,1742542441243,-179.74606632,0.00017995,3]
[356495055,1742542503847,-246.27627781,0.00017995,3]
[356495056,1742542534109,10000.0,0.00012001,2]
[356495057,1742542556973,10000.0,0.00012001,2]
[356495058,1742542577302,8336.61175817,0.00012001,2]
[356495059,1742542577330,1663.38824183,0.00012001,2]
[356495060,1742542627174,-165.53246295,0.00017995,2]
[356495061,1742542691773,10000.0,0.00012001,2]
[356495062,1742542706193,-42.34576287,0.00017995,2]
[356495068,1742542749928,10000.0,0.00012001,2]
[356495069,1742542771326,10000.0,0.00012001,2]
[356495070,1742542807968,10000.0,0.00012001,2]
[356495073,1742543223843,171.825536,0.00010959,2]
[356495096,1742543432878,-150.0,0.00017461,2]
[356495097,1742543432889,-600.0,0.00018166,2]
[356495098,1742543432899,-300.0,0.00018175,2]
[356495099,1742543432909,-500.0,0.00018176,2]
[356495100,1742543432919,-457.73760735,0.00018176,2]
[356495101,1742543432931,-42.26239265,0.00018176,2]
[356495102,1742543432942,-310.73984764,0.00018176,2]
[356495103,1742543432951,-253.8402806,0.00018176,2]
[356495104,1742543432963,-81.13307158,0.00018176,2]
[356495105,1742543432973,-500.0,0.00018176,2]
[356495106,1742543432983,-500.0,0.00018176,2]
[356495107,1742543432992,-20000.0,0.00018177,2]
[356495108,1742543433002,-500.0,0.00018177,2]
[356495109,1742543433012,-500.0,0.00018177,2]
[356495110,1742543433022,-500.0,0.00018177,2]
[356495111,1742543433033,-500.0,0.00018177,2]
[356495112,1742543433043,-500.0,0.00018177,2]
[356495114,1742543433054,-500.0,0.00018177,2]
[356495116,1742543433065,-500.0,0.00018177,2]
[356495118,1742543433075,-500.0,0.00018177,2]
[356495120,1742543433086,-500.0,0.00018177,2]
[356495122,1742543433096,-500.0,0.00018177,2]
[356495124,1742543433107,-891.55480708,0.00018177,2]
[356495126,1742543433117,-500.0,0.00018177,2]
[356495128,1742543433128,-500.0,0.00018177,2]
[356495131,1742543433139,-500.0,0.00018177,2]
[356495133,1742543433149,-500.0,0.00018177,2]
[356495134,1742543433159,-500.0,0.00018177,2]
[356495137,1742543433170,-500.0,0.00018177,2]
[356495139,1742543433180,-900.0,0.00018177,2]
[356495141,1742543433192,-500.0,0.00018177,2]
[356495143,1742543433202,-622.2,0.00018221,2]
[356495145,1742543433212,-645.2214,0.00018276,2]
[356495147,1742543433223,-192.47346553,0.00018331,2]
[356495149,1742543433236,-476.62112627,0.00018331,2]
[356495151,1742543433247,-866.33232367,0.00018386,2]
[356495153,1742543433257,-1473.5775025,0.00018494,2]
[356495179,1742543438787,-2692.7137372,0.00018494,2]
[356495180,1742543438799,-507.2332576,0.00018494,2]
[356495181,1742543438809,-156.11,0.000186,2]
[356495182,1742543438819,-300.0,0.00019828,2]
[356495183,1742543438828,-213.89862447,0.00021624,2]
[356495184,1742543438838,-160.0,0.000234,3]
[356495185,1742543438847,-160.0,0.000234,3]
[356495186,1742543438857,-1458.03306111,0.000234,3]
[356495187,1742543438866,-1458.03306111,0.000234,3]
[356495188,1742543438876,-1458.03306111,0.000234,3]
[356495189,1742543438885,-1458.03306111,0.000234,3]
[356495190,1742543438894,-1458.03306111,0.000234,3]
[356495191,1742543438906,-1458.03306111,0.000234,3]
[356495192,1742543438916,-1458.03306111,0.00023417,3]
[356495193,1742543438926,-1458.03306111,0.00024003,3]
[356495194,1742543438935,-1458.03306111,0.0002459,3]
[356495195,1742543438945,-380.0,0.00024658,2]
[356495196,1742543438954,-834.1406796,0.00024797,3]
[356495197,1742543438964,-418.02116171,0.00024797,3]
[356495198,1742543438974,-1458.03306111,0.00025176,4]
[356495199,1742543438983,-3000.0,0.00025399,2]
[356495200,1742543438992,-1458.03306111,0.00025762,4]
[356495201,1742543439002,-500.0,0.00025762,4]
[356495202,1742543439011,-210.99736496,0.00026006,2]
[356495203,1742543439021,-389.84357058,0.00027283,2]
[356495204,1742543439031,-171.58802138,0.00027397,2]
[356495205,1742543439040,-274.7545557,0.00027397,2]
[356495206,1742543439049,-160.0,0.00027554,2]
[356495207,1742543439059,-160.0,0.0002756,2]
[356495208,1742543439068,-160.0,0.0002756,2]
[356495209,1742543439078,-834.1406796,0.0002756,2]
[356495210,1742543439088,-418.02116171,0.0002756,2]
[356495211,1742543439097,-801.0,0.000276,2]
[356495212,1742543439107,-189.010941,0.00028559,2]
[356495213,1742543439117,-1279.77051026,0.00028697,2]
[356495214,1742543439126,-300.73181021,0.00028833,2]
[356495215,1742543439136,-12442.259428,0.00028834,2]
[356495216,1742543439237,-1458.03306111,0.00026348,4]
[356495217,1742543439247,-14647.7391203,0.00028834,2]
[356495218,1742543439257,-628.0,0.00028844,2]
[356495219,1742543439267,-628.0,0.00028844,2]
[356495220,1742543439276,-628.0,0.00028844,2]
[356495221,1742543439286,-628.0,0.00028844,2]
[356495222,1742543439295,-628.0,0.00028844,2]
[356495223,1742543439304,-628.0,0.00028844,2]
[356495224,1742543439314,-628.0,0.00028844,2]
[356495225,1742543439324,-628.0,0.00028844,2]
[356495226,1742543439333,-628.0,0.00028844,2]
[356495227,1742543439343,-628.0,0.00028844,2]
[356495228,1742543439355,-628.0,0.00028844,2]
[356495229,1742543439364,-628.0,0.00028844,2]
[356495230,1742543439373,-628.0,0.00028844,2]
[356495231,1742543439383,-423.0,0.00028844,2]
[356495232,1742543439393,-423.0,0.00028844,2]
[356495233,1742543439402,-143.20666366,0.00028844,2]
[356495236,1742543440881,-1458.03306111,0.00026934,4]
[356495237,1742543440891,-1458.03306111,0.00027521,4]
[356495238,1742543440902,-1458.03306111,0.00028107,5]
[356495239,1742543440914,-1458.03306111,0.00028693,5]
[356495240,1742543440924,-279.79333634,0.00028844,2]
[356495241,1742543440934,-423.0,0.00028844,2]
[356495242,1742543440946,-423.0,0.00028844,2]
[356495243,1742543440955,-423.0,0.00028844,2]
[356495244,1742543440964,-423.0,0.00028844,2]
[356495245,1742543440974,-423.0,0.00028844,2]
[356495246,1742543440987,-423.0,0.00028844,2]
[356495247,1742543440996,-423.0,0.00028844,2]
[356495248,1742543441006,-423.0,0.00028844,2]
[356495249,1742543441015,-423.0,0.00028844,2]
[356495250,1742543441024,-423.0,0.00028844,2]
[356495251,1742543441033,-628.0,0.00028844,2]
[356495252,1742543441043,-628.0,0.00028844,2]
[356495253,1742543441052,-628.0,0.00028844,2]
[356495254,1742543441062,-628.0,0.00028844,2]
[356495255,1742543441072,-628.0,0.00028844,2]
[356495256,1742543441081,-628.0,0.00028844,2]
[356495257,1742543441090,-628.0,0.00028844,2]
[356495258,1742543441100,-628.0,0.00028844,2]
[356495259,1742543441109,-628.0,0.00028844,2]
[356495260,1742543441118,-628.0,0.00028844,2]
[356495261,1742543441128,-628.0,0.00028844,2]
[356495262,1742543441137,-628.0,0.00028844,2]
[356495263,1742543441147,-628.0,0.00028844,2]
[356495264,1742543441156,-628.0,0.00028844,2]
[356495265,1742543441165,-423.0,0.00028844,2]
[356495266,1742543441175,-423.0,0.00028844,2]
[356495267,1742543441184,-423.0,0.00028844,2]
[356495268,1742543441194,-423.0,0.00028844,2]
[356495269,1742543441203,-423.0,0.00028844,2]
[356495270,1742543441212,-423.0,0.00028844,2]
[356495271,1742543441222,-423.0,0.00028844,2]
[356495272,1742543441231,-423.0,0.00028844,2]
[356495273,1742543441240,-423.0,0.00028844,2]
[356495274,1742543441250,-423.0,0.00028844,2]
[356495275,1742543441260,-423.0,0.00028844,2]
[356495276,1742543441269,-423.0,0.00028844,2]
[356495277,1742543441279,-423.0,0.00028844,2]
[356495278,1742543441288,-423.0,0.00028844,2]
[356495279,1742543441297,-500.0,0.000289,5]
[356495280,1742543441307,-500.0,0.000289,5]
[356495281,1742543441316,-500.0,0.000289,5]
[356495282,1742543441327,-500.0,0.000289,5]
[356495283,1742543441336,-541.0,0.00028913,2]
[356495284,1742543441345,-1914.0,0.00028913,2]
[356495285,1742543441356,-2270.0,0.00028913,2]
[356495286,1742543441369,-272.52131296,0.0002893,2]
[356495287,1742543441379,-500.0,0.00029,5]
[356495288,1742543441388,-27089.9985483,0.00029037,2]
[356495289,1742543441398,-189.01094098,0.00029586,2]
[356495290,1742543441407,-340.774,0.0003,24]
[356495291,1742543441417,-160.0,0.0003,10]
[356495292,1742543441426,-500.0,0.00030246,30]
[356495293,1742543441436,-500.0,0.00030246,30]
[356495294,1742543441446,-500.0,0.00030246,30]
[356495295,1742543441455,-500.0,0.00030246,30]
[356495296,1742543441465,-500.0,0.00030246,30]
[356495297,1742543441474,-574.23126616,0.00030246,30]
[356495298,1742543441484,-189.01094098,0.00030613,2]
[356495299,1742543441493,-189.01094098,0.00031639,2]
[356495300,1742543441503,-282.8416986,0.00031889,4]
[356495301,1742543441512,-1820.665,0.00031913,2]
[356495302,1742543441522,-2264.0,0.00031913,2]
[356495303,1742543441531,-500.0,0.00032,2]
[356495304,1742543441540,-986.69,0.00032212,7]
[356495305,1742543441550,-27089.9985483,0.0003229,2]
[356495306,1742543441559,-48999.0,0.000323,7]
[356495307,1742543441569,-160.0,0.000323,7]
[356495308,1742543441578,-160.0,0.000323,7]
[356495309,1742543441588,-834.1406796,0.000323,7]
[356495310,1742543441597,-1152.57266829,0.00032666,2]
[356495311,1742543441607,-189.01094098,0.00032666,2]
[356495312,1742543441616,-26440.38315526,0.00032766,2]
[356495313,1742543441628,-949.75236137,0.00032766,2]
[356495314,1742543441643,-1458.03306111,0.00029279,5]
[356495315,1742543441653,-4100.62691087,0.00032766,2]
[356495328,1742543443826,-739.76296667,0.00029866,5]
[356495329,1742543443837,-392.19237229,0.00029866,5]
[356495330,1742543443893,-326.07772215,0.00029866,5]
[356495331,1742543443902,-1458.03306111,0.00030452,5]
[356495332,1742543443912,-1458.03306111,0.00031038,5]
[356495333,1742543443921,-1458.03306111,0.00031624,6]
[356495334,1742543443931,-1458.03306111,0.0003221,6]
[356495335,1742543443941,-103959.2303135,0.00032766,2]
[356495336,1742543443951,-189.991794,0.00032766,2]
[356495337,1742543443960,-189.991794,0.00032766,2]
[356495338,1742543443970,-792.58703,0.00032766,7]
[356495339,1742543443979,-792.58703,0.00032766,7]
[356495341,1742543443988,-222000.0,0.00032776,2]
[356495343,1742543443997,-189.991794,0.00032776,2]
[356495345,1742543444007,-189.991794,0.00032776,2]
[356495346,1742543444016,-792.58703,0.00032776,7]
[356495347,1742543444026,-792.58703,0.00032776,7]
[356495348,1742543444035,-1458.03306111,0.00032797,6]
[356495349,1742543444044,-150.0,0.000328,30]
[356495350,1742543444054,-1000.0,0.000328,5]
[356495351,1742543444064,-27089.9985483,0.00032866,2]
[356495352,1742543444073,-500.0,0.00032873,5]
[356495353,1742543444082,-500.0,0.00032873,5]
[356495354,1742543444092,-500.0,0.00032873,5]
[356495355,1742543444101,-500.0,0.00032873,5]
[356495356,1742543444111,-500.0,0.00032873,5]
[356495357,1742543444120,-502.12285705,0.00032873,5]
[356495358,1742543444129,-500.0,0.00032873,5]
[356495359,1742543444139,-500.0,0.00032873,5]
[356495360,1742543444148,-500.0,0.00032873,5]
[356495361,1742543444157,-500.0,0.00032873,5]
[356495362,1742543444165,-636.39993359,0.00032873,5]
[356495363,1742543444174,-500.0,0.00032873,5]
[356495364,1742543444183,-552.64773924,0.00032873,5]
[356495365,1742543444192,-599.67593139,0.00032873,5]
[356495366,1742543444201,-500.0,0.00032873,5]
[356495367,1742543444210,-500.0,0.00032873,5]
[356495368,1742543444220,-214.19480733,0.00032873,5]
[356495369,1742543444229,-204.19192793,0.00032873,5]
[356495370,1742543444239,-500.0,0.00032873,5]
[356495371,1742543444248,-500.0,0.00032873,5]
[356495372,1742543444257,-507.75423214,0.00032873,5]
[356495373,1742543444267,-500.0,0.00032873,5]
[356495374,1742543444276,-500.0,0.00032873,5]
[356495375,1742543444285,-505.26242236,0.00032873,5]
[356495376,1742543444294,-212.48310665,0.00032876,20]
[356495378,1742543444303,-1014.31356215,0.00032876,20]
[356495380,1742543444312,-160.0,0.00032876,7]
[356495381,1742543444321,-500.0,0.00032876,21]
[356495382,1742543444331,-500.0,0.00032876,21]
[356495383,1742543444340,-523.0189798,0.00032876,21]
[356495384,1742543444350,-526.63,0.00032876,21]
[356495385,1742543444363,-500.0,0.00032876,21]
[356495386,1742543444373,-500.0,0.00032876,21]
[356495387,1742543444382,-500.0,0.00032876,21]
[356495388,1742543444391,-500.0,0.00032876,21]
[356495389,1742543444402,-500.0,0.00032876,21]
[356495390,1742543444412,-500.0,0.00032876,21]
[356495391,1742543444421,-500.0,0.00032876,21]
[356495392,1742543444432,-500.0,0.00032876,21]
[356495393,1742543444442,-500.0,0.00032876,21]
[356495394,1742543444452,-500.0,0.00032876,21]
[356495395,1742543444462,-1351.43,0.00032876,21]
[356495396,1742543444471,-1625.67,0.00032876,21]
[356495397,1742543444481,-500.0,0.00032876,21]
[356495398,1742543444490,-366.53999277,0.00032876,21]
[356495399,1742543444499,-500.0,0.00032876,21]
[356495400,1742543444508,-500.0,0.00032876,21]
[356495401,1742543444517,-500.0,0.00032876,21]
[356495402,1742543444526,-995.14,0.00032876,21]
[356495403,1742543444536,-500.0,0.00032876,21]
[356495404,1742543444545,-500.0,0.00032876,21]
[356495405,1742543444554,-500.0,0.00032876,21]
[356495406,1742543444563,-679.94,0.00032876,21]
[356495407,1742543444573,-500.0,0.00032876,21]
[356495408,1742543444583,-500.0,0.00032876,21]
[356495409,1742543444592,-500.0,0.00032876,21]
[356495410,1742543444602,-500.0,0.00032876,21]
[356495411,1742543444611,-500.0,0.00032876,21]
[356495412,1742543444621,-1042.53,0.00032876,21]
[356495413,1742543444630,-500.0,0.00032876,21]
[356495414,1742543444640,-500.0,0.00032876,21]
[356495415,1742543444649,-539.38,0.00032876,21]
[356495416,1742543444659,-956.96,0.00032876,21]
[356495417,1742543444668,-500.0,0.00032876,21]
[356495418,1742543444677,-720.4,0.00032876,21]
[356495419,1742543444687,-1039.61,0.00032876,21]
[356495420,1742543444697,-500.0,0.00032876,21]
[356495421,1742543444707,-637.85,0.00032876,21]
[356495422,1742543444716,-500.0,0.00032876,21]
[356495423,1742543444726,-500.0,0.00032876,21]
[356495424,1742543444736,-500.0,0.00032876,21]
[356495425,1742543444745,-1545.75,0.00032876,21]
[356495426,1742543444754,-886.58,0.00032876,21]
[356495427,1742543444764,-1382.07,0.00032876,21]
[356495428,1742543444774,-410.60699948,0.00032876,21]
[356495429,1742543444784,-517.91,0.00032876,21]
[356495430,1742543444794,-500.0,0.00032876,21]
[356495431,1742543444804,-586.51,0.00032876,21]
[356495432,1742543444813,-500.0,0.00032876,21]
[356495433,1742543444823,-618.3,0.00032876,120]
[356495434,1742543444833,-500.0,0.00032876,21]
[356495435,1742543444842,-500.0,0.00032876,21]
[356495436,1742543444851,-579.47,0.00032876,2]
[356495437,1742543444861,-553.48,0.00032876,21]
[356495438,1742543444870,-500.0,0.00032876,21]
[356495439,1742543444880,-1177.84,0.00032876,21]
[356495440,1742543444889,-465.86670937,0.00032876,21]
[356495441,1742543444899,-188.0,0.00032876,2]
[356495442,1742543444909,-500.0,0.00032876,21]
[356495443,1742543444919,-500.0,0.00032876,21]
[356495444,1742543444929,-1370.53,0.00032876,21]
[356495445,1742543444939,-907.04,0.00032876,21]
[356495446,1742543444949,-1106.97,0.00032876,21]
[356495447,1742543444959,-836.83,0.00032876,21]
[356495448,1742543444968,-500.0,0.00032876,21]
[356495449,1742543444978,-598.27,0.00032876,21]
[356495450,1742543444987,-873.06,0.00032876,21]
[356495451,1742543444997,-358.91650929,0.00032876,21]
[356495452,1742543445006,-500.0,0.00032876,21]
[356495453,1742543445015,-500.0,0.00032876,21]
[356495454,1742543445024,-1046.82,0.00032876,21]
[356495455,1742543445034,-938.56,0.00032876,21]
[356495456,1742543445043,-969.39,0.00032876,21]
[356495457,1742543445053,-893.3,0.00032876,21]
[356495458,1742543445062,-500.0,0.00032876,21]
[356495459,1742543445071,-596.75,0.00032876,21]
[356495460,1742543445080,-514.96688143,0.00032876,21]
[356495461,1742543445089,-637.41,0.00032876,21]
[356495462,1742543445175,-500.0,0.00032876,21]
[356495463,1742543445228,-500.0,0.00032876,21]
[356495464,1742543445238,-500.0,0.00032876,21]
[356495465,1742543445248,-300.0,0.00032876,30]
[356495466,1742543445258,-567.26,0.00032876,21]
[356495467,1742543445268,-500.0,0.00032876,21]
[356495468,1742543445278,-644.78902373,0.00032876,21]
[356495469,1742543445287,-941.77,0.00032876,21]
[356495470,1742543445297,-500.0,0.00032876,21]
[356495471,1742543445307,-500.0,0.00032876,21]
[356495472,1742543445317,-500.0,0.00032876,21]
[356495473,1742543445326,-967.82,0.00032876,21]
[356495474,1742543445336,-500.0,0.00032876,21]
[356495475,1742543445346,-581.2,0.00032876,21]
[356495476,1742543445359,-630.34973565,0.00032876,21]
[356495477,1742543445369,-922.87,0.00032876,21]
[356495478,1742543445379,-680.58,0.00032876,21]
[356495479,1742543445389,-568.43,0.00032876,21]
[356495480,1742543445399,-500.0,0.00032876,21]
[356495481,1742543445408,-607.51,0.00032876,21]
[356495482,1742543445418,-500.0,0.00032876,21]
[356495483,1742543445427,-500.0,0.00032876,21]
[356495484,1742543445439,-500.0,0.00032876,120]
[356495485,1742543445449,-775.75,0.00032876,21]
[356495486,1742543445459,-500.0,0.00032876,21]
[356495487,1742543445469,-500.0,0.00032876,21]
[356495488,1742543445478,-1497.65,0.00032876,21]
[356495489,1742543445488,-724.86,0.00032876,21]
[356495490,1742543445497,-575.67,0.00032876,21]
[356495491,1742543445507,-500.0,0.00032876,21]
[356495492,1742543445516,-1280.33,0.00032876,21]
[356495493,1742543445526,-1165.1,0.00032876,21]
[356495494,1742543445535,-2519.73,0.00032876,21]
[356495495,1742543445546,-515.07,0.00032876,21]
[356495496,1742543445555,-500.0,0.00032876,21]
[356495497,1742543445565,-500.0,0.00032876,21]
[356495498,1742543445575,-531.82,0.00032876,21]
[356495499,1742543445585,-693.15,0.00032876,21]
[356495500,1742543445594,-500.0,0.00032876,21]
[356495501,1742543445604,-500.0,0.00032876,21]
[356495502,1742543445613,-1089.74,0.00032876,21]
[356495503,1742543445624,-1331.4,0.00032876,21]
[356495504,1742543445634,-1554.92,0.00032876,21]
[356495505,1742543445644,-635.24,0.00032876,21]
[356495506,1742543445654,-500.0,0.00032876,21]
[356495507,1742543445663,-500.0,0.00032876,21]
[356495508,1742543445673,-2797.69,0.00032876,21]
[356495509,1742543445682,-500.0,0.00032876,21]
[356495510,1742543445691,-608.79,0.00032876,21]
[356495511,1742543445701,-500.0,0.00032876,21]
[356495512,1742543445711,-535.53,0.00032876,21]
[356495513,1742543445721,-838.53,0.00032876,21]
[356495514,1742543445730,-979.19,0.00032876,21]